Cogmind - Beta 15 @@@ ROGUE MODE // 2025.09.03 @ 20:52:00 Player: Silfurdreki Result: Destroyed by O5-HLC(R) with Subdweller Machine Gun Performance ------------- Evolutions (0) 0 Regions Visited (3) 600 Robots Destroyed (18) 90 Value Destroyed (335) 335 Prototype IDs (0) 0 Alien Tech Used (0) 0 Bonus (0) 0 TOTAL SCORE: 1025 Bonus ------- None Cogmind --------- Core Integrity 0/250 Matter 297/300 Energy 250/250 System Corruption 0% Temperature Cool (0) Movement Core (300) Ox5 Location -10/Subcaves Parts ------- > --- POWER (1) -------- Ion Engine > --- PROPULSION (2) --- (None) > --- UTILITY (2) ------ Medium Storage Unit > --- WEAPON (2) ------- Light Assault Rifle > --- INVENTORY (10) --- Light Ion Engine Aluminum Leg Aluminum Leg Improved Terrain Scanner Light Armor Plating Hacking Suite Rocket Launcher Piercing Trap Peak State ------------ > --- POWER ------------ Ion Engine > --- PROPULSION ------- Aluminum Leg Aluminum Leg > --- UTILITY ---------- Small Storage Unit Improved Terrain Scanner > --- WEAPON ----------- Assault Rifle Light Assault Rifle > --- INVENTORY -------- Light Ion Engine Medium Laser [Rating: 9] Favorites ----------- Power Ion Engine Engine Ion Engine Propulsion Aluminum Leg Leg Aluminum Leg Utility Seismic Detector Device Seismic Detector Storage Small Storage Unit Weapon Assault Rifle Energy Gun Medium Laser Ballistic Gun Assault Rifle Build | -11 -10 -10 -10 ------- Run | Yrd Mat Min Sub Slots Evolved . | . . . . Power . | . . . . Propulsion . | . . . . Utility . | . . . . Weapon . | . . . . Parts Attached 13 | 8 4 1 . Power 2 | 1 1 . . Engine 2 | 1 1 . . Core . | . . . . Reactor . | . . . . Propulsion 3 | 2 1 . . Treads . | . . . . Leg 3 | 2 1 . . Wheel . | . . . . Hover . | . . . . Flight . | . . . . Utility 4 | 3 1 . . Device 2 | 2 . . . Storage 2 | 1 1 . . Processor . | . . . . Hackware . | . . . . Protection . | . . . . Artifact . | . . . . Weapon 4 | 2 1 1 . Energy Gun 1 | . . 1 . Energy Cannon . | . . . . Ballistic Gun 3 | 2 1 . . Ballistic Cannon . | . . . . Launcher . | . . . . Special Weapon . | . . . . Impact Weapon . | . . . . Slashing Weapon . | . . . . Piercing Weapon . | . . . . Special Melee Weapon . | . . . . Unidentified Prototypes . | . . . . Parts Lost 6 | . . 2 4 Power . | . . . . Propulsion 2 | . . . 2 Utility 1 | . . . 1 Weapon 3 | . . 2 1 Highest Loss Streak 4 | . . 2 4 To Critical Strikes . | . . . . Average Backups 6 | 1 6 7 7 Power . | . 1 1 1 Propulsion 1 | . 1 2 2 Utility 2 | . 2 3 3 Weapon 1 | . 1 1 1 Tool/Special . | . . . . Unused Backups 6 | . . . 6 Power 1 | . . . 1 Propulsion 2 | . . . 2 Utility 2 | . . . 2 Weapon 1 | . . . 1 Tool/Special . | . . . . Average Slot Usage (%) 99 | . 100 100 95 Engine 14 | . 14 14 14 Leg 27 | . 28 28 25 Device 13 | . 14 14 13 Storage 14 | . 14 14 14 Energy Gun 2 | . . 10 13 Ballistic Gun 25 | . 28 17 14 Peak Build Rating 9 | 9 8 8 8 Average Rating 7 | 5 7 7 7 On Entrance 5 | . 7 8 8 Naked Turns . | . . . . Heaviest Build 20 | 14 20 20 19 Greatest Support 20 | 20 20 20 20 Greatest Overweight (x) 6 | . . . 6 Average Overweight (x) . | . . . . Largest Inventory Capacity 10 | 8 10 10 10 Average Capacity 8 | 7 8 10 10 Most Carried 8 | 3 8 8 8 Average Carried 6 | 1 6 7 7 Final Capacity 10 | 8 10 10 10 Final Carried 8 | 3 8 7 8 Class Distribution -------------------- 100% | Mutant Dominant Class ---------------- Mutant | -10/Materials Mutant | -10/Mines Mutant | -10/Subcaves Resources | -11 -10 -10 -10 ----------- Run | Yrd Mat Min Sub Matter Collected 570 | 245 304 . 21 Remotely . | . . . . Salvage Created 449 | 34 388 . 27 Parts 35 | 5 25 . 5 Haulers Intercepted 1 | . 1 . . Recyclers Shooed 2 | 1 . 1 . Parts Field Recycled . | . . . . Retrieved Matter . | . . . . Parts Self-Destructed 10 | . . . 10 Prevented . | . . . . Kills | -11 -10 -10 -10 ------- Run | Yrd Mat Min Sub Combat Hostiles Destroyed 13 | . 11 . 2 Guns 13 | . 11 . 2 Classes Destroyed 6 | 1 5 . . Tunneler 2 | 2 . . . Hauler 1 | . 1 . . Operator 1 | . 1 . . Watcher 1 | . 1 . . Swarmer 7 | . 5 . 2 Grunt 6 | . 6 . . Best Kill Streak 3 | 2 3 . 2 Combat Bots Only 3 | . 3 . 2 Max Kills in Single Turn 2 | 1 1 . 2 Gunslinging 1 | . . . 1 Exploded . | . . . . Melee . | . . . . Uniques/NPCs Destroyed . | . . . . Combat | -11 -10 -10 -10 -------- Run | Yrd Mat Min Sub Hostile Shots Fired 97 | . 49 4 44 Missed 25 | . 12 2 11 Hits 72 | . 37 2 33 Projectile 72 | . 37 2 33 AOE 2 | . . 2 . Critical Strikes 1 | . 1 . . Damage Taken 970 | . 397 81 492 Core 253 | . 55 16 182 Absorbed by Shields . | . . . . Core Remaining (%) 100 | 100 . . . Volleys Fired 50 | 4 39 . 7 Largest 2 | 2 2 . 2 Hottest 70 | 40 40 . 70 Shots Fired 97 | 8 78 . 11 Gun 97 | 8 78 . 11 Cannon . | . . . . Launcher . | . . . . Special . | . . . . Kinetic 93 | 8 78 . 7 Thermal 4 | . . . 4 Explosive . | . . . . Electromagnetic . | . . . . Robot Hit Streak 10 | 3 10 . 3 Robot Miss Streak 2 | 2 2 . 2 Penetration Max . | . . . . Secondary Targets 2 | . 1 . 1 Max Gunslinging Chain 1 | . 1 . 1 Shots Hit Robots 64 | 5 52 . 7 Core Hits 29 | 3 23 . 3 Critical Kills . | . . . . Critical Parts Destroyed 1 | . 1 . . Critical Strikes 1 | . 1 . . Destroy 1 | . 1 . . Melee Attacks . | . . . . Impact . | . . . . Slashing . | . . . . Piercing . | . . . . Sneak Attacks . | . . . . Combat Hostiles . | . . . . Follow-up Attacks . | . . . . Damage Inflicted 821 | 48 687 19 67 Guns 794 | 48 679 . 67 Cannons . | . . . . Explosions . | . . . . Melee . | . . . . Ramming 27 | . 8 19 . Kinetic 757 | 48 679 . 30 Thermal 37 | . . . 37 Explosive . | . . . . Electromagnetic . | . . . . Impact . | . . . . Slashing . | . . . . Piercing . | . . . . Highest Corruption . | . . . . Average Corruption . | . . . . Corruption Purged . | . . . . Corruption Blocked . | . . . . Overload Shots . | . . . . Overflow Damage . | . . . . Projectiles . | . . . . Explosions . | . . . . Melee . | . . . . Knockbacks . | . . . . Impact . | . . . . Kinetic . | . . . . Secondary . | . . . . Self-Inflicted Damage . | . . . . Shots . | . . . . Rammed . | . . . . Targets Rammed 7 | . 5 2 . Kicked 7 | . 5 2 . Crushed . | . . . . Highest Temperature 20 | . 20 . 1 Average Temperature 6 | . 7 . 1 Received Heat Transfer 198 | . 162 . 36 Siege Activations . | . . . . Martial Activations . | . . . . Shielding Activations . | . . . . Robots Disrupted . | . . . . Combat Hostiles . | . . . . Robots Corrupted . | . . . . Combat Hostiles . | . . . . Parts Fried . | . . . . Impact Corruptions . | . . . . Robots Melted . | . . . . Combat Hostiles . | . . . . Parts Melted . | . . . . Heat Transferred 111 | . . . 111 Parts Sabotaged . | . . . . Parts Stolen . | . . . . Parts Stripped . | . . . . Power Chain Reactions . | . . . . Alert | -11 -10 -10 -10 ------- Run | Yrd Mat Min Sub Maximum Alert Level . | . . . . Low Security (%) 100 | 100 100 100 . Level 1 . | . . . . Level 2 . | . . . . Level 3 . | . . . . Level 4 . | . . . . Level 5 . | . . . . High Security . | . . . . Max Security . | . . . . Peak Influence 145 | 5 145 1 . Initial 1 | . . 1 . Average 25 | 1 30 . . Influence Increases 439 | 10 379 . 50 Destroy 0b10 Robot/C 260 | . 220 . 40 Destroy 0b10 Robot/NC 25 | 10 15 . . Destroy Leader 74 | . 64 . 10 Successful Hack 4 | . 4 . . Destroy Structure 1 | . 1 . . Lose Combat Pursuer 75 | . 75 . . Influence Decreases 439 | 10 374 5 50 Entered New Map 4 | . . 4 . Time Decay 395 | 10 374 1 10 Lost Part 40 | . . . 40 Squads Dispatched 4 | . 4 . . Investigation 1 | . 1 . . Extermination . | . . . . Reinforcement 3 | . 3 . . Assault . | . . . . Garrison . | . . . . Intercept . | . . . . Searches Triggered . | . . . . Construction Impeded . | . . . . Haulers Reinforced . | . . . . Active Scanning Responses . | . . . . Cargo Convoy Interrupts . | . . . . Stealth | -11 -10 -10 -10 --------- Run | Yrd Mat Min Sub Distress Signals 3 | . 3 . . Communications Jammed . | . . . . Distress Signals . | . . . . Times Spotted 45 | . 30 8 7 Peak Tracking Total 13 | . 6 13 5 Tactical Retreats 8 | . 5 1 2 Traps | -11 -10 -10 -10 ------- Run | Yrd Mat Min Sub Traps Triggered 1 | . 1 . . Indirectly . | . . . . Trap Hack Attempts . | . . . . Triggered . | . . . . Disarmed . | . . . . Reprogrammed . | . . . . Reused . | . . . . Traps Extracted . | . . . . Installed . | . . . . Triggered . | . . . . Most Traps Carried 1 | . . . 1 Machines | -11 -10 -10 -10 ---------- Run | Yrd Mat Min Sub Machines Disabled . | . . . . Max in Single Turn . | . . . . Machines Repaired . | . . . . Machines Dismantled . | . . . . Machines Sabotaged . | . . . . Overloaded Fab Kills . | . . . . Hacking | -11 -10 -10 -10 --------- Run | Yrd Mat Min Sub Machines Accessed 6 | . 5 . 1 Terminals 5 | . 5 . . Fabricators . | . . . . Repair Stations . | . . . . Recycling Units . | . . . . Scanalyzers . | . . . . Garrison Access . | . . . . Total Hacks 20 | . 17 . 3 Successful 7 | . 4 . 3 Failed 13 | . 13 . . Catastrophic 2 | . 2 . . Database Lockouts . | . . . . Manual 12 | . 12 . . Terminals 17 | . 17 . . Fabricators . | . . . . Repair Stations . | . . . . Recycling Units . | . . . . Scanalyzers . | . . . . Garrison Access . | . . . . Terminal Hacks 5 | . 2 . 3 Record 3 | . . . 3 Alert Level 1 | . 1 . . Locate Traps 1 | . 1 . . Fabricator Hacks . | . . . . Repair Station Hacks . | . . . . Recycling Unit Hacks . | . . . . Scanalyzer . | . . . . Garrison Access Hacks . | . . . . Unauthorized Hacks 2 | . 2 . . Terminals 2 | . 2 . . Assimilate 1 | . 1 . . Botnet 1 | . 1 . . Fabricators . | . . . . Repair Stations . | . . . . Recycling Units . | . . . . Scanalyzers . | . . . . Garrison Access . | . . . . Data Cores Recovered . | . . . . Used . | . . . . Hacking Detections 5 | . 5 . . Full Trace Events 2 | . 2 . . Feedback Events . | . . . . Feedback Blocked . | . . . . Robot Schematics Acquired . | . . . . Robots Built . | . . . . Authchips . | . . . . Time . | . . . . Total Robot Build Rating . | . . . . Part Schematics Acquired . | . . . . Parts Built . | . . . . Authchips . | . . . . Time . | . . . . Total Part Build Rating . | . . . . Parts Repaired . | . . . . Time . | . . . . Parts Recycled . | . . . . Recycled Matter . | . . . . Retrieved Matter . | . . . . Retrieved Components . | . . . . Parts Scanalyzed . | . . . . Part Schematics Acquired . | . . . . Parts Damaged . | . . . . Bothacking | -11 -10 -10 -10 ------------ Run | Yrd Mat Min Sub Used RIF Installer . | . . . . Robots Hacked . | . . . . Non-combat . | . . . . Combat . | . . . . Robot Hacks Applied . | . . . . Relay Couplers Released . | . . . . Fabnet Peak Effective % . | . . . . Robots Rewired . | . . . . Allies Hacked . | . . . . Hacks Repelled . | . . . . Allies | -11 -10 -10 -10 -------- Run | Yrd Mat Min Sub Total Allies . | . . . . Largest Group . | . . . . Highest-Rated Group . | . . . . Highest-Rated Ally . | . . . . Total Orders . | . . . . Ally Attacks . | . . . . Total Damage . | . . . . Kills . | . . . . Allies Corrupted . | . . . . Allies Melted . | . . . . Intel | -11 -10 -10 -10 ------- Run | Yrd Mat Min Sub Active Infowar (turns) 2447 | 13 1977 276 181 Terrain 8 | 8 . . . Seismic 2439 | 5 1977 276 181 Robot Analysis Total . | . . . . Derelict Logs Recovered . | . . . . Drone Launches . | . . . . Drone Recoveries . | . . . . Exploration | -11 -10 -10 -10 ------------- Run | Yrd Mat Min Sub Turns Passed 2528 | 80 1977 276 195 Spaces Moved 1022 | 47 670 180 125 Core 8 | 3 . . 5 Treads . | . . . . Legs 1014 | 44 670 180 120 Wheels . | . . . . Hover . | . . . . Flight . | . . . . Fastest Speed 50 | 50 120 120 120 Average Speed 120 | 115 120 120 128 Slowest Speed 350 | 120 120 120 350 Overloaded Moves . | . . . . Propulsion Burnouts . | . . . . Robots Hopped . | . . . . Potential Cave-ins . | . . . . Cave-ins Triggered . | . . . . Exploration Rate (%) 37 | 3 76 58 14 Regions Visited 3 Branch Regions 2 Pre-discovered Areas . | . . . . Known Exits Taken . | . . . . Unknown Exits Taken 3 | 1 1 1 . Scrap Searched . | . . . . Spaces Dug . | . . . . Terrain Destroyed . | . . . . Melee . | . . . . Projectile . | . . . . AOE . | . . . . Terrain Rammed . | . . . . Walls Destroyed . | . . . . Machines Disabled . | . . . . Actions | -11 -10 -10 -10 --------- Run | Yrd Mat Min Sub Total 2216 | 61 1765 239 151 Wait 1114 | . 1041 55 18 Move 1019 | 46 669 179 125 Hop . | . . . . Pick Up 9 | 3 4 1 1 Fast Attach 7 | 7 . . . Attach 2 | . . 2 . Detach . | . . . . Swap 5 | 1 4 . . Drop 3 | . 3 . . Fire 50 | 4 39 . 7 Melee . | . . . . Ram . | . . . . Kick 7 | . 5 2 . Crush . | . . . . Escape Stasis . | . . . . Rewire . | . . . . Trap . | . . . . Miscellaneous . | . . . . Route ------- -11/Scrapyard -10/Materials (discovered 3 exits: [*Mat x2] / [*Min]) -10/Mines (discovered 2 exits: [*Mat] / *Sub) -10/Subcaves (discovered 1 exit: Rec) History --------- Turn | Location | Event 36 | -11/Scrapyard | Discovered new exit (range 15) 81 | -11/Scrapyard | Entered Materials 314 | -10/Materials | Build established: Mutant 680 | -10/Materials | Discovered new exit (range 13) 732 | -10/Materials | Discovered new exit (range 11) 967 | -10/Materials | Discovered new exit (range 10) 2058 | -10/Materials | Entered Mines 2098 | -10/Mines | Assembled infested the area 2157 | -10/Mines | Received a Rocket Launcher from a helpful Derelict 2248 | -10/Mines | Discovered new exit (range 10) 2326 | -10/Mines | Discovered new exit (range 6) 2334 | -10/Mines | Entered Subcaves 2335 | -10/Subcaves | Approached by a straggling Scientist 2363 | -10/Subcaves | Visited Clippyterm 2366 | -10/Subcaves | Identified exit to Recycling 2408 | -10/Subcaves | Shifting Twisted Machinery released Piercing Trap 2408 | -10/Subcaves | Shifting Twisted Machinery released Flamer 2508 | -10/Subcaves | Core integrity fell below 50% 2526 | -10/Subcaves | Core integrity fell below 20% 2529 | -10/Subcaves | Destroyed by O5-HLC(R) with Subdweller Machine Gun Last Messages --------------- Piercing Trap falls loose from the Twisted Machinery. Flamer falls loose from the Twisted Machinery. 02412_ Acquired Piercing Trap. SH-18L(c): "I think it's somewhere west of here" 02493_ Acquired 1 matter. 02495_ S-10 Pest destroyed. 02495_ Switching to secondary target: S-10 Pest. 02495_ S-10 Pest destroyed. 02496_ Acquired 1 matter. 02496_ S-10 Pest destroyed. 02502_ Acquired 1 matter. 02502_ Flight Unit fries itself beyond repair. 02504_ Lgt. Assault Rifle fries itself beyond repair. 02504_ Aluminum Leg destroyed. 02506_ Flight Unit fries itself beyond repair. 02506_ Aluminum Leg destroyed. 02507_ Flight Unit fries itself beyond repair. 02511_ Med. Laser destroyed. 02513_ Flight Unit fries itself beyond repair. 02515_ Seismic Detector destroyed. Map ----- +----------------------------------------------------+ | ?????????????????????????????????????????????????? | | ????????????????????????????????## ??????????????? | | ??????????????????????????????? ?????????????? | | ??????????????????????????????? ?????????????? | | ??????????????????????????????? ?????????????? | | ??????????????????????????????? ??????????????? | | ??????????????????????????????? ??????????????? | | ??????????????????????????????? #??????????????? | | ??????????????????????????????## #??????????????? | | ??????????????????????????????? #??????????????? | | ??????????????? ??????????????# #########??????? | | ?????????????## ??????????????# ???????? | | ?????????????# ##???????###### ???????? | | ?????????????? #????### # #?????????? | | ??????????????# ????# ##????????# | | ??????????????# ????# ##???????# | | ?????????????## ????# ###?????# | | ??????????#### ????# #### #?????# | | ?????????## ????# ##?## ###????## | | ?????????? ????## #??# ####???# | | ??????????? ####### #??#### ##???# | | ???????????????# # ##????### ##?## | | ????????????????# = #??????## ### | | ????????????????# % #???????### | | ???????????????## = ## # #?????????##### | | ???????????????# %####@ ##?????????????## # | | ??? ## R #??????????????# # | | ??? % R #??????????????# | | ??? ###%# # #??????????????# ## | | ???# ###??# ### #??????????????# ### | | ???? #?????#% ### #??????????????## #?? | | ???? ###### ??????# ##??##??????????????# ""#?? | | ??????????# ???????####???????????????????#"" #?? | | ??????????##???????????????????????????????# #?? | | ???????????????????????????????????????????# ?? | | ???????????????????????????????????????????## #?? | | ???????????????????????????????????????????? #?? | | ???????????????????????????????????????????? ?? | | ???????????????????????????????????????????? ?? | | ???????????????????????????????????????????#""""?? | | ????????????????????????????????????????????""""?? | | ?????????????????????????????????????????????????? | | ?????????????????????????????????????????????????? | | ?????????????????????????????????????????????????? | | ?????????????????????????????????????????????????? | | ?????????????????????????????????????????????????? | | ?????????????????????????????????????????????????? | | ?????????????????????????????????????????????????? | | ?????????????????????????????????????????????????? | | ?????????????????????????????????????????????????? | +----------------------------------------------------+ Best States ------------- Heat Dissipation 25 Energy Generation 10 Energy Capacity 250 Matter Stores 300 Matter Capacity 300 Sight Range 16 Terrain Scan Range 16 Terrain Scan Density 10 Evasion (%) 55 Item Schematics ----------------- None Robot Schematics ------------------ None Fabricated ------------ Nothing Repaired ---------- Nothing Alien Tech Used ----------------- None Achievements -------------- None Challenges ------------ None Game ------ Seed ModifiedSupersonicFirepult Manual? 0 Play Time 00:13:17 Cumulative 48.1 hours Start 2025.09.03 @ 20:11:27 End 2025.09.03 @ 20:52:00 Sessions 1 Manual Loads 0 Difficulty Rogue Special Mode None Game No. 75 Rogue 75 Adventurer 0 Explorer 0 Win Type - Total 1 Types 1/0/0/0/0/0/0/0/0/0 Lore% 41 Gallery% 36 Achievement% 36 Wizard Run 0 Options --------- Layout 0 ASCII 0 Keyboard 1 Movement Numpad Keybinds 0 Fullscreen 1 Font 24/Smallcaps Map View 76x50 Zoom Use 0% Tactical HUD 1 Map Filters NONE Filters NONE Steam 1 RUN: 1df11cc8-2a60-4207-806b-a0d4ce0ed683